bitfinex/quotes_ETHUSD_20250422
["timestamp","ask_amount","ask_price","bid_price","bid_amount"]
[1745359062046,2.78240886,1750.4,1749.5,5.71580835]
[1745359062047,0.82302886,1750.4,1749.8,0.05713688]
[1745359062254,0.82302886,1750.4,1749.5,8.71571543]
[1745359063850,0.82992886,1750.2,1749.4,0.05715101]
[1745359064229,0.82992886,1750.2,1749.1,5.77436391]
[1745359064424,0.82992886,1750.2,1749.2,3.0]
[1745359064639,0.82992886,1750.2,1749.3,0.0571506]
[1745359065127,6.83892886,1750.2,1749.3,0.0571506]
[1745359065458,0.55,1750.0,1749.2,0.05715059]
[1745359065628,0.05722886,1749.9,1749.2,0.05715059]
[1745359065829,0.05722886,1749.9,1748.1,5.72030408]
[1745359065830,0.7727,1749.4,1748.1,5.72030408]
[1745359066037,19.44222886,1749.3,1748.0,14.5444959]
[1745359066250,1.94422289,1749.2,1748.0,14.5444959]
[1745359066431,0.05722886,1749.1,1748.0,14.5444959]
[1745359066628,0.05722886,1749.1,1748.1,0.05718258]
[1745359066847,0.05722886,1749.1,1748.0,14.54450693]
[1745359067034,0.05722886,1749.1,1748.1,5.72048583]
[1745359067356,0.7727,1748.9,1748.0,8.82383838]
[1745359067572,0.7727,1748.9,1747.5,0.8108]
[1745359067573,0.60722886,1748.8,1747.5,6.53313149]
[1745359067776,0.60722886,1748.8,1747.4,14.54647585]
[1745359067777,1.3227,1748.7,1747.4,8.82383838]
[1745359068071,0.05722886,1748.6,1747.5,3.0]
[1745359068247,0.05722886,1748.8,1747.8,8.82383838]
[1745359068447,0.7727,1749.1,1747.9,3.8108]
[1745359068659,0.7727,1749.1,1748.5,3.0]
[1745359069077,0.7727,1749.1,1748.3,3.0]
[1745359069263,0.7727,1749.1,1748.3,8.71972295]
[1745359069462,0.7727,1749.1,1748.2,3.0]
[1745359069653,0.7727,1749.1,1748.3,0.05717352]
[1745359069654,0.05722886,1749.0,1748.3,0.05717352]
[1745359070747,0.7727,1749.1,1748.3,8.71968395]
[1745359070943,0.05722886,1749.4,1748.7,3.0]
[1745359071309,18.84,1749.5,1748.9,3.0]
[1745359071583,18.84,1749.5,1748.8,3.0]
[1745359072172,18.84,1749.5,1748.9,3.0]
[1745359072956,18.83199456,1749.5,1748.7,3.0]
[1745359073177,20.79246402,1749.5,1748.8,0.05716208]
[1745359073772,20.79246402,1749.5,1748.8,3.05716208]
[1745359074278,20.79246402,1749.5,1748.8,0.05716208]
[1745359074477,20.79246402,1749.5,1748.8,3.0]
[1745359074865,20.79246402,1749.5,1748.9,0.05716213]
[1745359075069,1.88834892,1749.4,1748.9,0.05716213]
[1745359075760,1.88834892,1749.4,1748.6,8.71854978]
[1745359075958,1.88834892,1749.4,1748.5,6.34648368]
[1745359076164,0.05722886,1749.3,1748.3,0.42531161]
[1745359076363,0.7727,1749.2,1748.2,6.34648368]
[1745359076562,0.8034,1749.0,1747.9,6.34648368]
[1745359076762,0.05722886,1748.9,1748.0,0.5683]
[1745359077058,0.71504739,1748.9,1748.0,0.5683]
[1745359077258,0.71504739,1748.9,1747.7,12.06810232]
[1745359077573,0.8034,1748.8,1747.7,6.34648368]
[1745359077769,0.05722886,1748.7,1747.7,6.34648368]
[1745359077978,0.8034,1748.5,1747.8,0.05720306]
[1745359078145,0.05722886,1748.4,1747.5,3.0]
[1745359078348,0.8034,1748.1,1746.8,12.83561899]
[1745359078547,0.05722886,1748.0,1746.8,7.11118368]
[1745359078820,0.71534801,1748.0,1746.8,6.34648368]
[1745359079362,0.8034,1747.8,1746.9,0.05722559]
[1745359079561,0.05722886,1747.7,1746.9,0.05722559]
[1745359079787,0.05722886,1747.7,1746.6,3.0]
[1745359079993,0.05722886,1747.7,1746.6,8.72520739]
[1745359080199,0.05722886,1747.7,1746.7,0.05722924]
[1745359080701,0.05722886,1747.7,1746.5,13.33670026]
[1745359080903,0.8034,1747.6,1746.5,0.5]
[1745359081067,5.72423207,1747.0,1746.5,0.5]
[1745359081269,26.00674608,1746.9,1746.5,0.5]
[1745359081590,20.22482321,1746.9,1746.5,0.5]
[1745359081770,19.6524,1746.9,1746.5,0.5]
[1745359082708,0.05722886,1746.8,1746.5,0.5]
[1745359082872,0.55,1746.7,1746.5,0.5]
[1745359083216,0.8034,1746.4,1745.9,0.4024811]
[1745359083382,0.05722886,1746.3,1745.9,0.4024811]
[1745359083772,0.55,1746.2,1745.9,0.4024811]
[1745359083977,0.05722886,1746.1,1745.9,0.4024811]
[1745359084515,0.8034,1746.0,1745.9,0.4024811]
[1745359084669,1.3534,1746.0,1745.9,0.4024811]
[1745359085107,0.55,1745.8,1744.7,3.7647]
[1745359085310,0.55,1745.6,1744.8,0.05729789]
[1745359085495,0.55,1745.6,1744.4,5.73243676]
[1745359085496,0.05722886,1745.5,1744.4,5.73243676]
[1745359085805,0.4554,1745.4,1744.2,9.90045682]
[1745359086007,0.05722886,1745.3,1744.2,4.1671811]
[1745359086209,0.05722886,1745.3,1744.2,9.9002125]
[1745359086613,0.55,1745.2,1744.2,1.1671811]
[1745359086910,1.3534,1745.0,1744.3,0.05731596]
[1745359087111,0.55,1744.6,1744.2,0.4024811]
[1745359087421,0.05722886,1745.1,1744.2,0.4024811]
[1745359087575,0.8034,1745.9,1745.0,3.0]
[1745359087774,0.8034,1746.3,1745.4,0.55]
[1745359087979,0.8034,1746.3,1745.6,0.7647]
[1745359088212,0.8034,1746.7,1745.9,5.72754991]
[1745359088424,18.875,1747.1,1746.0,0.05725839]
[1745359088425,0.8034,1747.1,1746.0,0.05725839]
[1745359088715,0.8034,1747.1,1745.8,6.27803299]
[1745359088716,0.8034,1747.1,1746.6,3.0]
[1745359088913,0.8034,1747.1,1746.4,5.7258849]
[1745359089219,0.8034,1747.1,1746.5,3.0572386]
[1745359089509,0.8034,1747.1,1746.5,3.0]
[1745359089713,0.8034,1747.1,1746.6,0.05724124]
[1745359089888,0.8034,1747.1,1746.5,8.72563093]
[1745359090089,0.86062886,1747.4,1746.7,3.0]
[1745359090400,18.875,1747.5,1747.0,3.0]
[1745359090607,18.875,1747.5,1746.9,3.0]
[1745359091337,18.875,1747.5,1746.8,8.72458521]
[1745359091524,0.8034,1747.8,1747.0,3.0]
[1745359091818,0.8034,1747.8,1747.3,8.72301397]
[1745359092025,0.86522886,1748.2,1747.4,0.05721274]
[1745359092224,2.70102289,1748.2,1747.4,3.0]
[1745359092643,2.75825175,1748.2,1747.0,3.7758]
[1745359092953,2.75825175,1748.2,1747.0,0.7758]
[1745359093103,2.75825175,1748.2,1747.1,5.72360627]
[1745359093289,2.75825175,1748.2,1747.2,8.72338834]
[1745359093624,2.75825175,1748.2,1747.0,0.7758]
[1745359093625,0.808,1748.2,1747.5,8.7222407]
[1745359093874,0.808,1748.2,1747.7,3.0]
[1745359094004,0.808,1748.2,1747.5,3.0]
[1745359094198,0.808,1748.2,1747.5,8.72241553]
[1745359094735,0.808,1748.2,1747.3,14.66480513]
[1745359094920,0.808,1748.2,1747.4,5.72276724]
[1745359095093,2.7761,1748.2,1747.5,3.0]
[1745359095291,2.7761,1748.2,1747.5,5.72225675]
[1745359095493,0.808,1748.2,1747.6,3.0]
[1745359095711,0.808,1748.2,1747.7,5.77882208]
[1745359095890,18.873,1748.3,1747.6,3.0]
[1745359096102,18.873,1748.3,1747.8,3.0]
[1745359096298,18.873,1748.3,1747.9,3.05719643]
[1745359096817,0.808,1748.4,1748.0,3.0]
[1745359097198,0.808,1748.9,1747.9,3.0]
[1745359097390,0.808,1748.9,1747.9,3.05718547]
[1745359097608,0.05722886,1748.8,1747.8,8.72133216]
[1745359098017,0.808,1748.9,1747.8,3.0]
[1745359098298,0.808,1748.9,1748.3,3.0]
[1745359098693,0.808,1748.9,1748.0,5.72064153]
[1745359098894,0.808,1748.9,1748.1,0.05717716]
[1745359099200,0.808,1748.9,1748.2,5.72013579]
[1745359099400,0.808,1748.9,1748.4,5.71931162]
[1745359099601,0.05722886,1749.3,1748.5,5.71904283]
[1745359099602,0.808,1749.3,1748.5,5.71904283]
[1745359099800,0.808,1749.3,1748.3,8.94183388]
[1745359100004,0.808,1749.3,1748.6,5.71884143]
[1745359100836,0.808,1749.3,1748.7,3.0]
[1745359101032,0.808,1749.3,1748.8,5.77523514]
[1745359101233,0.808,1749.3,1748.7,8.71845942]
[1745359101433,0.05722886,1749.8,1748.8,8.71802573]
[1745359101733,0.808,1749.7,1748.9,5.71786979]
[1745359102039,25.46810543,1750.7,1749.3,5.71638099]
[1745359102210,0.808,1750.1,1749.5,3.0]
[1745359102410,0.05722886,1750.6,1749.6,3.0]
[1745359102411,0.808,1750.5,1749.6,3.0]
[1745359102609,0.808,1750.5,1749.9,3.0]
[1745359102839,0.808,1751.0,1749.9,5.71450857]
[1745359103002,0.808,1751.0,1750.0,3.05711694]
[1745359103335,0.808,1751.0,1750.1,3.0]
[1745359103539,0.808,1751.0,1750.2,0.05711436]
[1745359103723,0.808,1751.0,1750.0,3.0]
[1745359103724,0.808,1751.0,1750.0,3.55]
[1745359104037,0.808,1751.0,1749.8,0.7758]
[1745359104038,0.808,1751.0,1750.5,3.0]
[1745359104222,0.4024811,1751.2,1750.5,1.3258]
[1745359104425,0.4024811,1751.2,1751.0,3.0]
[1745359104602,0.4024811,1751.2,1751.1,0.05708939]
[1745359104807,0.4024811,1751.2,1750.8,8.71150792]
[1745359105010,0.4024811,1751.2,1751.0,3.0]
[1745359105230,0.808,1751.8,1751.1,17.70961988]
[1745359105442,0.808,1752.1,1751.3,3.0]
[1745359105643,0.808,1752.1,1751.5,3.0]
[1745359106464,0.808,1751.9,1750.8,6.32688715]
[1745359106636,5.76589073,1751.8,1750.9,3.0]
[1745359106838,0.57658907,1751.7,1751.0,0.05709736]
[1745359107042,0.05722886,1751.8,1750.9,3.0]
[1745359107466,0.05722886,1751.8,1750.8,3.0]
[1745359107965,0.8086,1751.6,1750.3,8.88307216]
[1745359108171,0.55,1751.2,1750.4,0.05710833]
[1745359108467,5.71178142,1750.8,1749.9,8.88307216]
[1745359108679,6.26252177,1750.6,1749.5,8.88307216]
[1745359108830,0.8086,1750.4,1749.1,9.313216]
[1745359109165,0.05722886,1750.3,1749.1,8.88307216]
[1745359109328,0.8086,1750.2,1749.1,8.88307216]
[1745359109529,0.05722886,1750.1,1749.1,8.88307216]
[1745359109730,0.8086,1750.2,1749.4,3.0]
[1745359109926,0.8086,1749.8,1748.4,0.7797]
[1745359110163,0.55,1749.6,1748.1,8.88307216]
[1745359110354,0.86582886,1749.5,1748.2,5.72016931]
[1745359110547,0.86582886,1749.5,1748.3,3.05717545]
[1745359110827,0.86582886,1749.5,1748.1,9.31531134]
[1745359111034,0.86582886,1749.5,1748.6,5.71869898]
[1745359111274,0.8086,1749.5,1748.9,5.71772725]
[1745359111568,0.8086,1749.5,1749.0,3.05715683]
[1745359111774,0.8086,1749.5,1749.0,0.05715683]
[1745359111932,0.8086,1749.5,1749.0,3.0]
[1745359112334,0.8086,1749.5,1748.8,3.0]
[1745359112534,0.8086,1749.5,1748.8,5.71804617]
[1745359112973,0.8086,1749.5,1748.5,5.71899347]
[1745359113134,0.8086,1749.5,1748.1,0.43223918]
[1745359113135,0.8086,1749.5,1748.2,8.88307216]
[1745359113333,0.05722886,1749.4,1748.2,8.88307216]
[1745359113555,0.05722886,1749.4,1748.3,5.71970825]
[1745359113874,0.8086,1749.3,1748.3,0.05717497]
[1745359114038,0.05722886,1749.2,1748.2,5.72016502]
[1745359114554,0.8086,1749.1,1748.0,3.4277064]
[1745359114755,0.8086,1749.1,1748.5,3.0]
[1745359114959,0.8086,1749.1,1748.6,0.05717984]
[1745359115668,0.8086,1749.1,1748.8,3.0]
[1745359115869,0.8086,1749.1,1748.9,0.0571704]
[1745359116182,24.55512879,1750.1,1749.1,3.0]
[1745359116183,0.8086,1749.9,1749.1,3.0]
[1745359116332,0.05722886,1749.8,1749.1,3.0]
[1745359116536,0.05722886,1749.8,1749.1,5.71712367]
[1745359116751,0.8086,1749.9,1749.2,3.0]
[1745359117151,0.8086,1749.9,1749.3,0.05715271]
[1745359117374,0.8086,1749.9,1749.4,5.71598328]
[1745359117589,0.8086,1750.9,1749.5,3.0]
[1745359117767,0.05722886,1750.8,1749.5,3.0]
[1745359118281,0.8086,1750.9,1749.9,3.0]
[1745359118438,0.05722886,1750.8,1750.2,3.0]
[1745359118642,0.86582886,1750.9,1750.0,5.71414849]
[1745359118943,0.86582886,1750.9,1750.2,5.71350125]
[1745359119143,0.8086,1750.9,1750.3,0.05712106]
[1745359119453,0.8086,1750.9,1750.2,5.71350125]
[1745359119454,2.77406,1750.9,1750.4,5.77008359]
[1745359119764,2.77406,1750.9,1750.6,5.71219937]
[1745359119765,0.8086,1750.9,1750.6,5.71219937]
[1745359119967,0.8086,1751.3,1750.8,8.71147695]
[1745359120190,0.8086,1751.3,1750.9,0.05710087]
[1745359120405,0.8086,1751.3,1750.7,3.0]
[1745359120565,0.8086,1751.3,1750.8,0.05710084]
[1745359120774,0.8086,1751.3,1750.8,3.0]
[1745359120985,0.8086,1751.3,1750.8,8.76858726]
[1745359121182,0.8086,1751.8,1750.8,8.76858726]
[1745359121394,0.05722886,1751.7,1750.9,3.0]
[1745359121589,0.05722886,1751.7,1750.8,0.05710054]
[1745359121590,0.8033,1751.6,1750.8,0.05710054]
[1745359121771,0.55,1751.3,1750.1,8.7138323]
[1745359121977,0.8033,1751.0,1750.1,3.0]
[1745359122179,0.55,1750.6,1749.4,8.88307216]
[1745359122372,0.55,1750.6,1748.5,5.71899804]
[1745359122373,0.55,1750.3,1749.2,8.88307216]
[1745359122587,0.55,1750.3,1748.5,5.71916133]
[1745359122588,0.8033,1750.1,1748.8,15.41650134]
[1745359122784,0.05722886,1750.0,1749.2,3.0]
[1745359122982,0.05722886,1750.0,1749.2,0.05715404]
[1745359123186,0.05722886,1750.0,1749.1,3.0]
[1745359123591,0.05722886,1750.0,1749.2,3.0]
[1745359123775,0.05722886,1750.0,1748.9,5.71774738]
[1745359123776,0.05722886,1750.0,1749.0,5.71737912]
[1745359124297,0.05722886,1750.0,1749.1,3.0]
[1745359124500,0.05722886,1750.0,1749.0,8.71741092]
[1745359124994,0.05722886,1750.0,1749.0,11.43479731]
[1745359125303,0.55,1749.5,1748.5,5.71889373]
[1745359125474,0.05722886,1749.4,1748.6,5.77584263]
[1745359125680,0.05722886,1749.5,1748.8,3.0]
[1745359125862,0.05722886,1749.5,1748.9,0.05716722]
[1745359126066,0.05722886,1749.5,1748.8,3.0]
[1745359127183,0.7505,1749.6,1748.9,5.77487861]
[1745359127492,0.7505,1749.6,1749.2,8.71675259]
[1745359127709,0.7505,1749.6,1749.3,5.77364151]
[1745359127882,0.7505,1750.0,1749.5,5.71572679]
[1745359128221,0.7505,1750.0,1749.5,5.71577962]
[1745359128424,0.7505,1750.0,1749.3,5.71657137]
[1745359128606,0.7505,1750.0,1749.8,5.71490252]
[1745359128908,0.7505,1750.0,1749.8,5.77206562]
[1745359129110,0.7505,1750.5,1749.6,3.0]
[1745359129311,0.7505,1750.5,1749.9,5.71443753]
[1745359129513,0.7505,1750.5,1750.0,5.71427075]
[1745359129723,0.7505,1750.5,1748.9,0.7938]
[1745359129933,0.80772886,1750.5,1748.9,0.7938]
[1745359130089,0.55,1750.2,1749.1,5.71698947]
[1745359130289,0.05722886,1750.1,1749.2,5.71689488]
[1745359130526,0.05722886,1750.1,1749.3,3.05715244]
[1745359130986,0.05722886,1750.1,1749.3,0.05715244]
[1745359131489,0.05722886,1750.1,1749.3,3.0]
[1745359131699,0.60722886,1750.2,1749.3,3.05715174]
[1745359131996,0.05722886,1750.2,1749.3,8.77348468]
[1745359132203,0.05722886,1750.2,1749.3,3.05715174]
[1745359132599,0.05722886,1750.2,1749.3,8.77365854]
[1745359132794,0.05722886,1750.2,1749.3,0.05715174]
[1745359133000,0.05722886,1750.2,1749.3,3.0]
[1745359133198,0.05722886,1750.2,1749.4,0.05714907]
[1745359134019,0.05722886,1750.2,1749.3,8.71654403]
[1745359134622,0.05722886,1750.2,1749.3,3.0]
[1745359134986,0.60722886,1750.2,1749.2,8.71687215]
[1745359135903,0.05722886,1750.2,1749.3,5.71654032]
[1745359136111,1.34630175,1750.2,1749.5,3.0]
[1745359136317,12.8335,1750.3,1749.7,5.71512099]
[1745359136521,12.8335,1750.3,1749.8,0.05713787]
[1745359136796,12.8335,1750.3,1749.7,3.0]
[1745359136997,14.11685,1750.3,1749.7,8.71512561]
[1745359138490,14.11685,1750.3,1749.8,5.71480434]
[1745359138729,12.8335,1750.3,1749.7,8.71526547]
[1745359139033,0.7505,1750.3,1750.1,3.0]
[1745359139338,0.7505,1750.3,1750.1,8.71394468]
[1745359139539,0.7766,1751.2,1750.5,5.71259684]
[1745359139697,0.7766,1751.2,1750.9,5.71118459]
[1745359139902,0.7766,1751.2,1750.9,3.0]
[1745359140407,0.7766,1751.2,1750.6,8.71220073]
[1745359140740,0.7766,1751.2,1750.6,8.71215153]
[1745359141408,0.7766,1751.2,1750.6,8.71212928]
[1745359141610,0.7766,1751.2,1750.7,0.05710654]
[1745359141814,0.7766,1751.2,1750.7,3.05710654]
[1745359142147,0.7766,1751.2,1750.7,0.05710654]
[1745359142325,0.7766,1751.2,1750.3,3.0]
[1745359142630,0.7766,1751.2,1750.5,3.0]
[1745359143022,0.7766,1751.2,1750.5,8.71261616]
[1745359143222,0.7766,1751.2,1750.5,8.7124084]
[1745359144222,0.7766,1751.2,1750.5,3.0]
[1745359144501,0.05722886,1751.1,1750.5,0.05711074]
[1745359144813,0.55,1751.0,1749.9,6.34119742]
[1745359145002,0.7975,1750.7,1750.0,0.05712377]
[1745359145208,0.05722886,1750.6,1749.7,5.71519992]
[1745359145440,0.05722886,1750.6,1749.8,0.05714033]
[1745359145603,0.7975,1750.5,1749.7,3.0]
[1745359145803,0.05722886,1750.4,1749.7,8.7150739]
[1745359145997,0.05722886,1750.4,1749.7,3.0]
[1745359146202,0.05722886,1750.4,1749.6,5.71538275]
[1745359146651,0.05722886,1750.4,1749.7,3.0]
[1745359146947,0.55,1750.2,1749.2,5.71668727]
[1745359147127,0.85472886,1750.1,1749.3,0.05715439]
[1745359147328,9.34119742,1750.8,1749.7,5.71526547]
[1745359147329,0.05722886,1750.7,1749.7,5.71526547]
[1745359147549,0.7975,1751.0,1750.7,5.71172154]
[1745359147847,0.7975,1751.6,1750.8,3.0]
[1745359148137,0.7975,1752.2,1751.3,3.0]
[1745359148324,0.7975,1752.2,1751.4,0.05707319]
[1745359148524,0.7975,1752.2,1751.3,15.05096977]
[1745359148525,0.7975,1752.2,1751.8,3.0]
[1745359148838,0.7975,1752.8,1752.1,5.70716588]
[1745359149044,0.7975,1752.8,1752.3,5.70657597]
[1745359149246,0.7975,1752.8,1752.4,0.05705609]
[1745359149409,0.7975,1752.8,1752.4,5.76350527]
[1745359149612,0.7975,1752.8,1752.6,5.70566444]
[1745359149825,0.4024811,1752.9,1752.7,5.70534593]
[1745359150024,0.4024811,1752.9,1752.8,3.0]
[1745359150232,0.4024811,1752.9,1752.8,8.70515746]
[1745359150433,0.4024811,1752.9,1752.7,3.0]
[1745359150647,0.4024811,1752.9,1752.6,3.0]
[1745359151058,0.4024811,1752.9,1752.7,0.05704589]
[1745359151359,0.4024811,1752.9,1752.4,8.70643729]
[1745359151742,0.4024811,1752.9,1752.3,3.0]
[1745359152058,12.65332886,1752.8,1751.5,9.64252132]
[1745359152259,12.65332886,1752.8,1751.2,5.71035023]
[1745359152260,0.55,1752.5,1751.1,8.87112132]
[1745359152462,0.55,1752.3,1751.2,5.71014086]
[1745359152623,0.05722886,1752.2,1751.3,3.0]
[1745359152823,0.55,1752.0,1750.7,8.87112132]
[1745359153057,0.55,1751.6,1750.3,14.58438461]
[1745359153259,0.8181,1751.3,1750.2,5.71357487]
[1745359153460,0.8181,1751.3,1750.1,5.7139592]
[1745359153657,0.8181,1751.3,1750.9,5.7110831]
[1745359153985,0.8181,1751.7,1751.0,8.76801274]
[1745359154166,0.8181,1751.7,1751.1,5.71064558]
[1745359154334,0.8181,1751.7,1751.3,5.70986586]
[1745359154657,0.8181,1751.7,1751.3,8.70999346]
[1745359154864,0.8181,1752.1,1751.8,3.0]
[1745359155052,0.8181,1752.5,1752.0,5.70761561]
[1745359155261,0.8181,1752.5,1752.2,5.70694718]
[1745359155433,0.4024811,1752.9,1752.3,0.05705701]
[1745359155629,0.4024811,1752.9,1752.2,3.0]
[1745359155942,0.4024811,1752.9,1752.7,5.70521791]
[1745359156145,0.4024811,1752.9,1752.8,5.76219827]
[1745359156355,0.4024811,1752.9,1752.8,8.70515746]
[1745359157776,0.4024811,1752.9,1752.8,14.40910546]
[1745359158070,0.4024811,1752.9,1752.8,8.70515746]
[1745359158276,0.4024811,1752.9,1752.8,12.55021746]
[1745359158453,0.4024811,1752.9,1752.8,8.70515746]
[1745359158867,0.4024811,1752.9,1752.8,11.55481746]
[1745359159068,0.4024811,1752.9,1752.8,5.84966]
[1745359159274,0.4024811,1752.9,1752.3,8.87112132]
[1745359159472,0.45970996,1752.9,1752.0,5.70762805]
[1745359159782,0.45970996,1752.9,1751.9,8.87112132]
[1745359159983,2.51959096,1752.9,1751.8,5.70827246]
[1745359160290,2.51959096,1752.9,1751.8,5.70822615]
[1745359160442,2.51959096,1752.9,1751.7,3.0]
[1745359160642,2.4623621,1752.9,1752.2,5.70696122]
[1745359160868,2.4623621,1752.9,1752.4,3.0]
[1745359161078,2.4623621,1752.9,1752.3,8.7066528]
[1745359161572,2.4623621,1752.9,1752.4,0.05704832]
[1745359161772,0.05722886,1752.8,1751.8,5.70819115]
[1745359162071,0.05722886,1752.8,1751.7,5.70874008]
[1745359162244,0.05722886,1752.8,1751.9,3.0]
[1745359162446,0.05722886,1752.8,1751.8,5.70828722]
[1745359162447,0.05722886,1752.8,1751.8,3.0]
[1745359162776,0.05722886,1752.8,1752.1,8.70738972]
[1745359162975,2.4623621,1752.9,1752.2,0.05705781]
[1745359163181,2.4623621,1752.9,1752.4,5.70631308]
[1745359163346,0.4024811,1752.9,1752.7,5.70533581]
[1745359163663,0.4024811,1752.9,1752.8,8.70515746]
[1745359164078,0.4024811,1752.9,1752.8,12.69008846]
[1745359164579,0.4024811,1752.9,1752.8,11.0330134]
[1745359164775,0.4024811,1752.9,1752.8,10.77398446]
[1745359164977,0.4024811,1752.9,1752.8,3.0]
[1745359165182,0.8181,1752.8,1752.0,8.87112132]
[1745359165351,0.05722886,1752.7,1751.7,6.4798157]
[1745359165544,0.05722886,1752.7,1751.6,8.87112132]
[1745359165975,0.05722886,1752.7,1751.8,3.0]
[1745359166172,0.05722886,1752.7,1751.9,0.05706876]
[1745359166676,2.02596175,1752.7,1751.7,3.0]
[1745359167373,0.7958,1752.3,1751.2,8.87112132]
[1745359167678,11.22922886,1752.2,1751.3,3.0]
[1745359167983,0.7958,1752.1,1750.9,5.71120846]
[1745359168184,0.55,1751.8,1750.8,8.87112132]
[1745359168347,0.7958,1751.6,1750.4,8.87112132]
[1745359168694,0.7958,1751.4,1750.4,8.87112132]
[1745359168871,0.05722886,1751.3,1750.2,5.71349185]
[1745359169261,0.85302886,1751.4,1750.3,0.05711144]
[1745359169451,0.7958,1751.4,1750.5,8.71265352]
[1745359169757,0.7958,1751.9,1751.4,5.70957749]
[1745359169969,0.7958,1752.4,1751.6,5.70877237]
[1745359170185,0.7958,1752.4,1751.9,5.70785662]
[1745359170351,0.7958,1752.8,1752.0,3.0570646]
[1745359170552,2.85425697,1752.8,1752.0,3.0]
[1745359170860,2.85425697,1752.8,1752.0,8.70758199]
[1745359171257,0.7958,1752.8,1752.1,0.05705743]
[1745359171457,0.7958,1752.8,1752.4,3.0]
[1745359171789,0.4024811,1752.9,1752.8,3.0]
[1745359172149,0.4024811,1752.9,1752.8,8.70515746]
[1745359172653,0.4024811,1752.9,1752.8,8.76219781]
[1745359172987,0.7958,1753.9,1753.0,3.0]
[1745359173187,0.7958,1753.9,1753.0,0.8028]
[1745359173394,0.7958,1753.9,1753.5,3.0]
[1745359173692,0.7958,1753.9,1753.6,0.05701457]
[1745359174054,0.7958,1753.9,1753.3,0.05701481]
[1745359174751,0.7958,1753.9,1752.7,3.0]
[1745359174950,0.05722886,1753.8,1753.1,3.0]
[1745359175149,0.7958,1753.9,1753.2,0.05702674]
[1745359175376,0.7958,1753.9,1753.1,8.76106112]
[1745359175580,0.7958,1753.9,1753.0,3.0]
[1745359175781,0.7958,1753.9,1752.5,8.8601972]
[1745359175782,0.7958,1753.7,1752.5,8.8601972]
[1745359175950,0.7958,1753.5,1752.6,0.05704141]
[1745359176150,0.7958,1753.3,1752.2,5.70693064]
[1745359176386,0.05722886,1753.2,1752.3,3.0]
[1745359176555,10.891,1753.1,1752.1,14.56753138]
[1745359176758,10.891,1753.1,1751.7,8.8601972]
[1745359176759,0.7958,1752.9,1751.7,8.8601972]
[1745359176959,0.05722886,1752.8,1751.9,5.70787244]
[1745359177155,0.05722886,1752.8,1752.0,0.05705836]
[1745359177688,0.05722886,1752.8,1751.7,8.8601972]
[1745359177866,0.7958,1752.7,1751.7,8.8601972]
[1745359178056,0.05722886,1752.6,1751.7,8.8601972]
[1745359178575,0.7958,1752.7,1751.7,8.8601972]
[1745359178576,0.7958,1752.7,1751.8,3.05706525]
[1745359178763,0.7958,1752.7,1751.8,0.05706525]
[1745359178966,0.7958,1752.7,1752.3,5.70674955]
[1745359179489,0.7958,1752.7,1752.1,5.70724856]
[1745359179685,0.7958,1752.7,1752.0,8.70758774]
[1745359180051,0.7958,1752.7,1752.3,3.0]
[1745359180268,0.7958,1752.7,1752.4,0.05705479]
[1745359181180,0.7958,1752.7,1752.1,5.70740704]
[1745359181383,0.7958,1752.7,1752.2,0.0570548]
[1745359181585,11.703,1753.1,1752.6,5.70574492]
[1745359181884,0.812,1753.5,1752.3,3.0]
[1745359182089,0.05722886,1753.4,1752.3,8.70667525]
[1745359182401,0.812,1753.3,1752.4,0.05704069]
[1745359182601,0.05722886,1753.2,1752.4,0.05704069]
[1745359183009,0.05722886,1753.2,1752.4,3.0]
[1745359183309,0.05722886,1753.2,1752.5,3.0]
[1745359183673,0.05722886,1753.2,1752.3,8.70660432]
[1745359183982,0.05722886,1753.2,1752.5,3.0]
[1745359184704,0.05722886,1753.2,1752.2,14.56706361]
[1745359184876,0.05722886,1753.2,1752.3,5.7637887]
[1745359185076,0.05722886,1753.2,1752.3,3.05705179]
[1745359185393,0.05722886,1753.2,1752.3,0.05705179]
[1745359185722,0.55,1753.1,1751.9,5.70792087]
[1745359185918,0.55,1753.1,1752.0,0.05706092]
[1745359185919,0.812,1752.9,1752.0,0.05706092]
[1745359186211,0.812,1752.6,1751.5,5.70916695]
[1745359186368,0.05722886,1752.5,1751.6,3.0]
[1745359186804,0.05722886,1752.5,1751.4,5.70945806]
[1745359186969,0.05722886,1752.5,1751.5,5.766296]
[1745359187175,0.05722886,1752.5,1751.6,3.0]
[1745359187375,0.05722886,1752.5,1751.5,5.70932911]
[1745359187797,0.05722886,1752.5,1751.6,3.0]
[1745359188392,0.05722886,1752.5,1751.5,5.70916412]
[1745359188594,0.05722886,1752.5,1751.4,5.70953303]
[1745359188807,0.05722886,1752.5,1751.5,5.7092672]
[1745359189010,0.05722886,1752.5,1751.6,3.0]
[1745359189575,0.812,1752.6,1751.8,8.7082049]
[1745359189800,0.812,1752.6,1751.8,8.70826143]
[1745359189996,0.812,1752.6,1751.9,0.05705943]
[1745359190200,0.812,1752.6,1751.9,3.05705943]
[1745359190511,0.05722886,1752.5,1751.9,3.05705943]
[1745359190686,0.812,1752.6,1752.0,5.70772682]
[1745359190873,0.812,1752.6,1752.1,0.05706199]
[1745359191078,0.05722886,1752.5,1751.9,0.05706199]
[1745359191288,0.05722886,1752.5,1751.8,3.0]
[1745359191504,0.812,1752.4,1751.8,3.0]
[1745359192608,0.812,1752.7,1752.1,14.56740602]
[1745359192845,0.812,1752.7,1752.2,3.0]
[1745359193178,0.05722886,1752.6,1751.8,3.0]
[1745359193987,0.05722886,1752.6,1751.9,0.05707083]
[1745359195224,0.05722886,1752.6,1751.9,5.76514757]
[1745359195514,0.812,1752.7,1752.2,5.70702734]
[1745359195691,0.812,1752.7,1752.5,3.0]
[1745359195887,0.812,1752.7,1752.5,3.05704642]
[1745359196103,11.417,1753.0,1752.5,3.0]
[1745359196307,11.417,1753.0,1752.5,8.70600392]
[1745359196930,0.812,1753.4,1752.7,3.0]
[1745359197089,0.05722886,1753.3,1752.4,3.0]